fUSD/lending_fUSD_20260221
["ID","MTS","AMOUNT","RATE_DAILY","PERIOD"]
[406270065,1771675843594,-500.0,0.00039265,2]
[406270066,1771675843604,-500.0,0.00039265,2]
[406270067,1771675843614,-500.0,0.00039265,2]
[406270068,1771675843623,-500.0,0.00039265,2]
[406270069,1771675843633,-500.0,0.00039265,2]
[406270070,1771675843643,-693.3919763,0.00039265,2]
[406270071,1771675843652,-174.61919141,0.00039265,2]
[406270072,1771675843663,-1341.839,0.00039295,2]
[406270073,1771675843673,-162.78,0.00039295,2]
[406270074,1771675843683,-3493.0,0.00039295,2]
[406270075,1771675843692,-618.0,0.00039295,2]
[406270076,1771675843705,-1128.266,0.00039295,2]
[406270077,1771675843714,-150.0,0.00039295,2]
[406270078,1771675843724,-719.04747942,0.0003932,2]
[406270079,1771675843735,-745.65223616,0.00039375,2]
[406270080,1771675843744,-773.2413689,0.0003943,2]
[406270081,1771675843753,-801.85129955,0.00039485,2]
[406270082,1771675843764,-831.51979763,0.0003954,2]
[406270083,1771675843775,-862.28603014,0.00039595,2]
[406270084,1771675843784,-894.19061326,0.0003965,2]
[406270085,1771675843794,-927.27566595,0.00039705,2]
[406270086,1771675843803,-961.58486559,0.0003976,2]
[406270087,1771675843813,-181.08010149,0.00039813,2]
[406270088,1771675843823,-997.16350561,0.00039815,2]
[406270089,1771675843833,-169.88351399,0.00039839,2]
[406270090,1771675843843,-983.5,0.00039974,30]
[406270091,1771675843852,-518.0,0.00039974,30]
[406270092,1771675843861,-187.78006525,0.00040361,2]
[406270093,1771675843871,-2000.0,0.000404,2]
[406270094,1771675843881,-212.32,0.00040612,30]
[406270095,1771675843890,-150.0,0.00040651,7]
[406270096,1771675843899,-150.0,0.00040651,7]
[406270097,1771675843909,-150.0,0.00040651,7]
[406270098,1771675843918,-2000.0,0.000408,7]
[406270099,1771675843928,-194.72792766,0.00040909,2]
[406270100,1771675843937,-100792.0,0.0004095,60]
[406270101,1771675843946,-842.0,0.00041096,120]
[406270102,1771675843956,-175.81,0.00041406,14]
[406270103,1771675843966,-201.93286099,0.00041457,2]
[406270104,1771675843976,-521.0,0.000416,25]
[406270105,1771675843985,-500.0,0.0004162,120]
[406270106,1771675843995,-842.0,0.00041644,120]
[406270107,1771675844005,-26646.57,0.000417,2]
[406270108,1771675844015,-26646.57,0.000417,14]
[406270109,1771675844025,-1590.30811988,0.000419,2]
[406270110,1771675844034,-367.65,0.000419,14]
[406270111,1771675844044,-3000.0,0.000419,15]
[406270112,1771675844054,-175.81,0.00041937,14]
[406270113,1771675844063,-209.40437684,0.00042005,2]
[406270114,1771675844072,-842.0,0.00042192,120]
[406270115,1771675844082,-1272.879,0.0004226,2]
[406270116,1771675844091,-5976.0,0.0004226,2]
[406270117,1771675844100,-3493.0,0.00042295,2]
[406270118,1771675844109,-618.0,0.00042295,2]
[406270119,1771675844118,-1039.0,0.00042295,2]
[406270120,1771675844127,-100792.0,0.000423,60]
[406270122,1771675844137,-152.0,0.00042359,3]
[406270123,1771675844146,-175.81,0.00042469,14]
[406270124,1771675844155,-217.15233878,0.00042553,2]
[406270125,1771675844164,-6998.0566075,0.00042708,11]
[406270126,1771675844173,-842.0,0.0004274,120]
[406270127,1771675844182,-820.155015,0.00042741,2]
[406270128,1771675844191,-26646.57,0.000428,2]
[406270129,1771675844200,-2173.3353058,0.00043,4]
[406270130,1771675844211,-200.0,0.00043068,120]
[406270131,1771675844220,-200.0,0.00043068,120]
[406270132,1771675844230,-225.18697532,0.00043101,2]
[406270133,1771675844239,-10359.23,0.00043202,2]
[406270134,1771675844248,-842.0,0.00043288,120]
[406270135,1771675844257,-511.40531467,0.00043524,60]
[406270136,1771675844266,-500.0,0.00043524,60]
[406270137,1771675844275,-500.0,0.00043524,60]
[406270138,1771675844284,-1099.83385679,0.00043562,120]
[406270139,1771675844294,-2007.0,0.000436,7]
[406270140,1771675844304,-300.212008,0.00043614,116]
[406270141,1771675844313,-1471.58882627,0.00043622,2]
[406270142,1771675844322,-233.51889341,0.00043649,2]
[406270143,1771675844332,-100792.0,0.0004365,60]
[406270144,1771675844341,-159.9049081,0.00043673,10]
[406270145,1771675844350,-150.0,0.00043673,10]
[406270146,1771675844359,-352.03,0.000437,14]
[406270147,1771675844368,-1343.9005063,0.0004377,3]
[406270148,1771675844378,-150.131637,0.00043835,120]
[406270149,1771675844387,-150.131637,0.00043835,120]
[406270150,1771675844397,-150.131637,0.00043835,120]
[406270151,1771675844406,-150.131637,0.00043835,120]
[406270152,1771675844415,-150.131637,0.00043835,120]
[406270153,1771675844424,-150.131637,0.00043835,120]
[406270154,1771675844433,-150.131637,0.00043835,120]
[406270155,1771675844443,-150.131637,0.00043835,120]
[406270156,1771675844452,-150.131637,0.00043835,120]
[406270157,1771675844461,-150.131637,0.00043835,120]
[406270158,1771675844471,-150.131637,0.00043835,120]
[406270159,1771675844480,-150.131637,0.00043835,120]
[406270160,1771675844489,-150.131637,0.00043835,120]
[406270161,1771675844498,-150.131637,0.00043835,120]
[406270162,1771675844508,-150.131637,0.00043835,120]
[406270163,1771675844517,-150.131637,0.00043835,120]
[406270164,1771675844526,-150.131637,0.00043835,120]
[406270165,1771675844535,-150.131637,0.00043835,120]
[406270166,1771675844544,-150.131637,0.00043835,120]
[406270167,1771675844553,-150.131637,0.00043835,120]
[406270168,1771675844562,-150.131637,0.00043835,120]
[406270169,1771675844571,-150.131637,0.00043835,120]
[406270170,1771675844580,-150.131637,0.00043835,120]
[406270171,1771675844589,-150.131637,0.00043835,120]
[406270172,1771675844598,-150.131637,0.00043835,120]
[406270173,1771675844607,-150.131637,0.00043835,120]
[406270174,1771675844615,-150.131637,0.00043835,120]
[406270175,1771675844625,-150.131637,0.00043835,120]
[406270176,1771675844633,-150.131637,0.00043835,120]
[406270177,1771675844642,-150.131637,0.00043835,120]
[406270178,1771675844651,-150.131637,0.00043835,120]
[406270179,1771675844659,-150.131637,0.00043835,120]
[406270180,1771675844668,-150.131637,0.00043835,120]
[406270181,1771675844677,-150.131637,0.00043835,120]
[406270182,1771675844686,-150.131637,0.00043835,120]
[406270183,1771675844698,-150.131637,0.00043835,120]
[406270184,1771675844707,-150.131637,0.00043835,120]
[406270185,1771675844716,-150.131637,0.00043835,120]
[406270186,1771675844725,-150.131637,0.00043835,120]
[406270187,1771675844734,-150.131637,0.00043835,120]
[406270188,1771675844744,-150.131637,0.00043835,120]
[406270189,1771675844753,-150.131637,0.00043835,120]
[406270190,1771675844762,-150.131637,0.00043835,120]
[406270191,1771675844773,-150.131637,0.00043835,120]
[406270192,1771675844783,-150.131637,0.00043835,120]
[406270193,1771675844791,-150.131637,0.00043835,120]
[406270194,1771675844800,-150.131637,0.00043835,120]
[406270195,1771675844810,-150.131637,0.00043835,120]
[406270196,1771675844819,-150.131637,0.00043835,120]
[406270197,1771675844828,-150.131637,0.00043835,120]
[406270198,1771675844839,-150.131637,0.00043835,120]
[406270199,1771675844847,-150.131637,0.00043835,120]
[406270200,1771675844857,-150.131637,0.00043835,120]
[406270201,1771675844866,-150.131637,0.00043835,120]
[406270202,1771675844875,-150.131637,0.00043835,120]
[406270203,1771675844884,-150.131637,0.00043835,120]
[406270204,1771675844893,-150.131637,0.00043835,120]
[406270205,1771675844902,-150.131637,0.00043835,120]
[406270206,1771675844911,-150.131637,0.00043835,120]
[406270207,1771675844920,-150.131637,0.00043835,120]
[406270208,1771675844929,-150.131637,0.00043835,120]
[406270209,1771675844938,-150.131637,0.00043835,120]
[406270210,1771675844947,-150.131637,0.00043835,120]
[406270211,1771675844956,-150.131637,0.00043835,120]
[406270212,1771675844965,-150.131637,0.00043835,120]
[406270213,1771675844976,-150.131637,0.00043835,120]
[406270214,1771675844985,-150.131637,0.00043835,120]
[406270215,1771675844994,-150.131637,0.00043835,120]
[406270216,1771675845003,-150.131637,0.00043835,120]
[406270217,1771675845012,-150.131637,0.00043835,120]
[406270218,1771675845021,-150.131637,0.00043835,120]
[406270219,1771675845030,-150.131637,0.00043835,120]
[406270220,1771675845039,-150.131637,0.00043835,120]
[406270221,1771675845049,-150.131637,0.00043835,120]
[406270222,1771675845058,-150.131637,0.00043835,120]
[406270223,1771675845067,-150.131637,0.00043835,120]
[406270224,1771675845076,-150.131637,0.00043835,120]
[406270225,1771675845086,-150.131637,0.00043835,120]
[406270226,1771675845095,-150.131637,0.00043835,120]
[406270227,1771675845103,-150.131637,0.00043835,120]
[406270228,1771675845112,-150.131637,0.00043835,120]
[406270229,1771675845121,-150.131637,0.00043835,120]
[406270230,1771675845130,-156.342725,0.00043835,120]
[406270231,1771675845139,-150.131637,0.00043835,120]
[406270232,1771675845148,-156.342725,0.00043835,120]
[406270233,1771675845157,-150.131637,0.00043835,120]
[406270234,1771675845166,-150.131641,0.00043835,120]
[406270235,1771675845175,-156.342725,0.00043835,120]
[406270236,1771675845185,-150.131637,0.00043835,120]
[406270237,1771675845194,-150.131641,0.00043835,120]
[406270238,1771675845203,-156.342725,0.00043835,120]
[406270239,1771675845214,-150.131637,0.00043835,120]
[406270240,1771675845223,-150.131641,0.00043835,120]
[406270241,1771675845232,-156.342725,0.00043835,120]
[406270242,1771675845241,-150.131637,0.00043835,120]
[406270243,1771675845250,-156.342725,0.00043835,120]
[406270244,1771675845259,-156.342725,0.00043835,120]
[406270245,1771675845268,-156.342725,0.00043835,120]
[406270246,1771675845277,-156.342725,0.00043835,120]
[406270247,1771675845287,-156.342725,0.00043835,120]
[406270248,1771675845295,-156.342725,0.00043835,120]
[406270249,1771675845304,-150.552082,0.00043835,120]
[406270250,1771675845313,-150.552082,0.00043835,120]
[406270251,1771675845322,-150.552082,0.00043835,120]
[406270252,1771675845331,-150.552082,0.00043835,120]
[406270253,1771675845347,-150.552082,0.00043835,120]
[406270254,1771675845359,-150.552082,0.00043835,120]
[406270255,1771675845367,-150.552082,0.00043835,120]
[406270256,1771675845376,-150.552082,0.00043835,120]
[406270257,1771675845385,-150.552082,0.00043835,120]
[406270258,1771675845394,-150.552082,0.00043835,120]
[406270259,1771675845403,-150.552082,0.00043835,120]
[406270260,1771675845412,-150.552082,0.00043835,120]
[406270261,1771675845421,-150.552082,0.00043835,120]
[406270262,1771675845429,-150.552082,0.00043835,120]
[406270263,1771675845439,-150.552082,0.00043835,120]
[406270264,1771675845449,-150.552082,0.00043835,120]
[406270265,1771675845457,-150.552082,0.00043835,120]
[406270266,1771675845467,-150.552082,0.00043835,120]
[406270267,1771675845476,-150.552082,0.00043835,120]
[406270268,1771675845485,-150.552082,0.00043835,120]
[406270269,1771675845494,-150.552082,0.00043835,120]
[406270270,1771675845503,-150.552082,0.00043835,120]
[406270271,1771675845513,-150.552082,0.00043835,120]
[406270272,1771675845522,-150.552082,0.00043835,120]
[406270273,1771675845535,-150.552082,0.00043835,120]
[406270274,1771675845546,-150.552082,0.00043835,120]
[406270275,1771675845556,-150.552082,0.00043835,120]
[406270276,1771675845568,-150.552082,0.00043835,120]
[406270277,1771675845579,-150.552082,0.00043835,120]
[406270278,1771675845592,-150.552082,0.00043835,120]
[406270279,1771675845604,-150.552082,0.00043835,120]
[406270280,1771675845615,-150.552082,0.00043835,120]
[406270281,1771675845625,-150.552082,0.00043835,120]
[406270282,1771675845636,-150.552082,0.00043835,120]
[406270283,1771675845647,-150.552082,0.00043835,120]
[406270284,1771675845657,-150.552082,0.00043835,120]
[406270285,1771675845667,-150.552082,0.00043835,120]
[406270286,1771675845676,-150.552082,0.00043835,120]
[406270287,1771675845686,-150.552082,0.00043835,120]
[406270288,1771675845701,-150.552082,0.00043835,120]
[406270289,1771675845717,-150.552082,0.00043835,120]
[406270290,1771675845728,-150.552082,0.00043835,120]
[406270291,1771675845742,-150.552082,0.00043835,120]
[406270292,1771675845754,-150.552082,0.00043835,120]
[406270293,1771675845766,-150.552082,0.00043835,120]
[406270294,1771675845777,-150.552082,0.00043835,120]
[406270295,1771675845788,-150.552082,0.00043835,120]
[406270296,1771675845799,-150.552082,0.00043835,120]
[406270297,1771675845810,-150.552082,0.00043835,120]
[406270298,1771675845821,-150.552082,0.00043835,120]
[406270299,1771675845831,-150.552082,0.00043835,120]
[406270300,1771675845843,-150.552082,0.00043835,120]
[406270301,1771675845853,-150.552082,0.00043835,120]
[406270302,1771675845864,-150.552082,0.00043835,120]
[406270303,1771675845875,-150.552082,0.00043835,120]
[406270304,1771675845886,-150.552082,0.00043835,120]
[406270305,1771675845897,-150.552082,0.00043835,120]
[406270307,1771675845911,-150.552082,0.00043835,120]
[406270309,1771675845922,-150.552082,0.00043835,120]
[406270311,1771675845933,-150.552082,0.00043835,120]
[406270312,1771675845945,-150.552082,0.00043835,120]
[406270313,1771675845956,-150.552082,0.00043835,120]
[406270314,1771675845966,-150.552082,0.00043835,120]
[406270315,1771675845976,-150.552082,0.00043835,120]
[406270316,1771675845986,-150.552082,0.00043835,120]
[406270317,1771675845996,-150.552082,0.00043835,120]
[406270318,1771675846006,-150.552082,0.00043835,120]
[406270319,1771675846016,-150.552082,0.00043835,120]
[406270320,1771675846026,-150.552082,0.00043835,120]
[406270321,1771675846036,-150.552082,0.00043835,120]
[406270322,1771675846048,-150.552082,0.00043835,120]
[406270323,1771675846058,-150.552082,0.00043835,120]
[406270324,1771675846070,-150.552082,0.00043835,120]
[406270325,1771675846080,-150.552082,0.00043835,120]
[406270326,1771675846090,-150.552082,0.00043835,120]
[406270327,1771675846104,-150.552082,0.00043835,120]
[406270328,1771675846114,-150.552082,0.00043835,120]
[406270329,1771675846125,-150.552082,0.00043835,120]
[406270330,1771675846135,-150.552082,0.00043835,120]
[406270331,1771675846147,-150.552082,0.00043835,120]
[406270332,1771675846157,-150.552083,0.00043835,120]
[406270333,1771675846167,-150.552083,0.00043835,120]
[406270334,1771675846178,-150.552083,0.00043835,120]
[406270335,1771675846188,-150.552083,0.00043835,120]
[406270336,1771675846199,-150.552083,0.00043835,120]
[406270337,1771675846210,-150.552083,0.00043835,120]
[406270338,1771675846221,-150.552083,0.00043835,120]
[406270339,1771675846231,-150.552083,0.00043835,120]
[406270340,1771675846242,-150.552083,0.00043835,120]
[406270341,1771675846253,-150.552083,0.00043835,120]
[406270342,1771675846263,-500.0,0.00043835,70]
[406270343,1771675846275,-842.0,0.00043836,120]
[406270344,1771675846284,-167.82603777,0.00043836,2]
[406270345,1771675846298,-150.0,0.00043836,120]
[406270347,1771675846309,-150.0,0.00043836,120]
[406270349,1771675846321,-166.0,0.00043836,120]
[406270351,1771675846331,-500.0,0.00043836,120]
[406270353,1771675846341,-500.0,0.00043836,120]
[406270356,1771675846352,-150.0,0.00043836,120]
[406270358,1771675846363,-461.81596152,0.00043836,120]
[406270360,1771675846373,-150.0,0.00043836,120]
[406270362,1771675846384,-500.0,0.00043836,120]
[406270364,1771675846395,-150.0,0.00043836,120]
[406270366,1771675846406,-500.0,0.00043836,120]
[406270369,1771675846416,-150.0,0.00043836,120]
[406270371,1771675846428,-251.0,0.00043836,120]
[406270373,1771675846438,-500.0,0.00043836,120]
[406270375,1771675846449,-150.0,0.00043836,2]
[406270377,1771675846460,-162.34238859,0.00043836,120]
[406270379,1771675846470,-500.0,0.00043836,120]
[406270382,1771675846481,-150.0,0.00043836,2]
[406270384,1771675846494,-500.0,0.00043836,120]
[406270386,1771675846504,-500.0,0.00043836,120]
[406270388,1771675846515,-500.0,0.00043836,120]
[406270391,1771675846526,-500.0,0.00043836,120]
[406270395,1771675846536,-500.0,0.00043836,120]
[406270398,1771675846551,-500.0,0.00043836,120]
[406270402,1771675846565,-389.59328754,0.00043836,120]
[406270404,1771675846577,-500.0,0.00043836,2]
[406270407,1771675846589,-500.0,0.00043836,2]
[406270410,1771675846600,-500.0,0.00043836,2]
[406270414,1771675846612,-1145.66026749,0.0004395,120]
[406270417,1771675846623,-1000.0,0.00044,120]
[406270420,1771675846634,-3855.27,0.00044,30]
[406270423,1771675846645,-173.74378417,0.00044,30]
[406270426,1771675846656,-324.06,0.00044021,14]
[406270429,1771675846667,-500.0,0.00044072,60]
[406270433,1771675846679,-1000.0,0.00044072,14]
[406270435,1771675846689,-1000.0,0.000441,2]
[406270438,1771675846705,-999.0,0.00044136,120]
[406270441,1771675846715,-324.06,0.00044142,14]
[406270444,1771675846724,-150.0,0.00044179,14]
[406270447,1771675846733,-150.0,0.00044183,14]
[406270450,1771675846745,-199.96970301,0.00044197,2]
[406270453,1771675846756,-196.03907193,0.000442,120]
[406270456,1771675846766,-184.12604253,0.000442,120]
[406270459,1771675846776,-183.10282582,0.000442,120]
[406270462,1771675846786,-210.97792532,0.000442,120]
[406270464,1771675846796,-201.79687633,0.000442,120]
[406270467,1771675846807,-307.70213215,0.000442,120]
[406270471,1771675846819,-150.96509003,0.00044221,10]
[406270475,1771675846831,-150.0,0.0004425,14]
[406270477,1771675846841,-324.06,0.00044262,14]
[406270480,1771675846851,-1000.0,0.00044283,14]
[406270483,1771675846861,-1000.0,0.000443,14]
[406270485,1771675846871,-150.0,0.00044325,14]
[406270487,1771675846881,-1195.47158347,0.00044338,120]
[406270489,1771675846891,-150.0,0.00044347,14]
[406270491,1771675846901,-1000.0,0.00044359,14]
[406270494,1771675846910,-1000.0,0.00044376,14]
[406270498,1771675846920,-500.0,0.00044383,120]
[406270500,1771675846929,-500.0,0.00044383,120]
[406270502,1771675846939,-467.51116128,0.00044383,120]
[406270504,1771675846949,-500.0,0.00044383,120]
[406270506,1771675846960,-500.0,0.00044383,120]
[406270508,1771675846971,-500.0,0.00044383,120]
[406270510,1771675846982,-500.0,0.00044383,120]
[406270513,1771675846994,-503.46476353,0.00044383,30]
[406270515,1771675847004,-500.0,0.00044383,120]
[406270517,1771675847015,-501.048194,0.00044383,30]
[406270519,1771675847025,-563.61,0.00044383,30]
[406270521,1771675847036,-405.94316194,0.00044383,2]
[406270523,1771675847046,-500.0,0.00044383,120]
[406270525,1771675847056,-500.0,0.00044383,120]
[406270527,1771675847065,-500.0,0.00044383,120]
[406270529,1771675847075,-500.0,0.00044383,120]
[406270531,1771675847085,-500.0,0.00044383,120]
[406270533,1771675847095,-500.0,0.00044383,120]
[406270535,1771675847105,-528.05292293,0.00044383,120]
[406270538,1771675847116,-370.53793113,0.00044383,120]
[406270540,1771675847126,-315.63046994,0.00044383,120]
[406270542,1771675847135,-842.0,0.00044384,120]
[406270544,1771675847145,-150.0,0.00044393,14]
[406270546,1771675847155,-1000.0,0.00044395,14]
[406270548,1771675847165,-1000.0,0.00044398,14]
[406270550,1771675847175,-150.0,0.000444,120]
[406270552,1771675847185,-150.0,0.000444,120]
[406270554,1771675847196,-150.0,0.000444,120]
[406270557,1771675847206,-150.0,0.000444,120]
[406270559,1771675847215,-1000.0,0.00044401,14]
[406270560,1771675847225,-150.0,0.00044401,14]
[406270561,1771675847235,-1000.0,0.00044408,14]
[406270562,1771675847245,-1000.0,0.00044417,14]
[406270563,1771675847255,-413.71550616,0.00044427,14]
[406270564,1771675847265,-1000.0,0.0004444,14]
[406270565,1771675847275,-1000.0,0.00044453,14]
[406270566,1771675847285,-150.0,0.00044468,14]
[406270567,1771675847295,-1000.0,0.00044473,14]
[406270568,1771675847305,-1000.0,0.00044476,14]
[406270570,1771675847316,-1000.0,0.00044477,14]
[406270572,1771675847326,-150.94414865,0.00044488,14]
[406270575,1771675847337,-1000.0,0.00044488,14]
[406270577,1771675847347,-1000.0,0.00044494,14]
[406270579,1771675847358,-3000.0,0.000445,16]
[406270581,1771675847369,-150.0,0.00044502,14]
[406270583,1771675847379,-1000.0,0.00044528,14]
[406270585,1771675847389,-2000.0,0.0004453,120]
[406270587,1771675847400,-2000.0,0.0004453,120]
[406270589,1771675847410,-2000.0,0.0004453,120]
[406270592,1771675847420,-2000.0,0.0004453,120]
[406270594,1771675847431,-2000.0,0.0004453,120]
[406270596,1771675847441,-1000.0,0.00044545,14]
[406270598,1771675847451,-1000.0,0.0004455,14]
[406270600,1771675847461,-1000.0,0.00044562,14]
[406270602,1771675847471,-1000.0,0.00044564,14]
[406270604,1771675847482,-1000.0,0.00044565,14]
[406270607,1771675847492,-1000.0,0.0004457,14]
[406270609,1771675847506,-1000.0,0.00044574,14]
[406270611,1771675847516,-1000.0,0.00044576,14]
[406270613,1771675847526,-1000.0,0.0004458,14]
[406270615,1771675847536,-1000.0,0.00044592,14]
[406270617,1771675847546,-1000.0,0.00044599,14]
[406270619,1771675847556,-1000.0,0.000446,14]
[406270621,1771675847566,-3000.0,0.000446,16]
[406270623,1771675847576,-26646.57,0.000446,2]
[406270625,1771675847586,-1000.0,0.00044612,14]
[406270627,1771675847596,-500.0,0.0004462,60]
[406270630,1771675847606,-500.0,0.0004462,60]
[406270632,1771675847616,-150.0,0.00044621,14]
[406270634,1771675847626,-150.0,0.00044627,14]
[406270636,1771675847636,-1000.0,0.0004463,14]
[406270638,1771675847646,-212.32,0.00044641,120]
[406270640,1771675847657,-1000.0,0.00044644,14]
[406270642,1771675847667,-1000.0,0.00044664,14]
[406270644,1771675847678,-150.0,0.00044672,14]
[406270646,1771675847688,-1000.0,0.00044674,14]
[406270648,1771675847703,-1000.0,0.00044674,14]
[406270650,1771675847712,-150.0,0.00044685,14]
[406270652,1771675847722,-1000.0,0.00044691,14]
[406270654,1771675847732,-150.0,0.00044692,14]
[406270656,1771675847743,-1000.0,0.00044698,14]
[406270658,1771675847752,-1000.0,0.00044699,14]
[406270660,1771675847762,-3000.0,0.000447,16]
[406270662,1771675847774,-150.0,0.00044709,14]
[406270664,1771675847785,-1000.0,0.00044714,14]
[406270666,1771675847794,-1000.0,0.00044719,14]
[406270668,1771675847804,-1000.0,0.00044719,14]
[406270670,1771675847814,-1249.8112009,0.00044726,120]
[406270673,1771675847825,-1000.0,0.00044728,14]
[406270675,1771675847834,-1000.0,0.00044732,14]
[406270677,1771675847845,-150.0,0.00044745,14]
[406270679,1771675847855,-150.0,0.00044762,14]
[406270681,1771675847865,-1000.0,0.00044762,14]
[406270683,1771675847875,-1000.0,0.00044764,14]
[406270685,1771675847884,-150.0,0.00044766,14]
[406270687,1771675847894,-1000.0,0.0004477,3]
[406270689,1771675847904,-1000.0,0.00044783,14]
[406270691,1771675847914,-1000.0,0.00044783,14]
[406270693,1771675847924,-150.0,0.00044787,14]
[406270695,1771675847934,-150.0,0.00044792,14]
[406270697,1771675847944,-1000.0,0.00044799,14]
[406270699,1771675847954,-6999.98,0.000448,120]
[406270702,1771675847964,-3166.0,0.000448,16]
[406270704,1771675847975,-150.0,0.00044802,14]
[406270706,1771675847985,-1000.0,0.00044807,14]
[406270708,1771675847994,-1000.0,0.00044808,14]
[406270710,1771675848004,-150.0,0.00044811,14]
[406270712,1771675848014,-1000.0,0.00044815,14]
[406270714,1771675848024,-1000.0,0.00044818,14]
[406270716,1771675848034,-1000.0,0.00044821,14]
[406270718,1771675848044,-1000.0,0.00044826,14]
[406270720,1771675848054,-150.0,0.00044827,14]
[406270722,1771675848064,-1000.0,0.00044841,14]
[406270724,1771675848073,-1000.0,0.00044845,14]
[406270726,1771675848083,-1000.0,0.00044846,14]
[406270728,1771675848093,-1000.0,0.00044851,14]
[406270729,1771675848103,-150.0,0.00044863,14]
[406270730,1771675848113,-1000.0,0.00044865,14]
[406270731,1771675848124,-1000.0,0.00044866,14]
[406270732,1771675848135,-1000.0,0.00044868,14]
[406270733,1771675848144,-500.0,0.0004487,3]
[406270734,1771675848154,-1000.0,0.0004487,3]
[406270735,1771675848164,-500.0,0.0004487,3]
[406270736,1771675848174,-1000.0,0.0004487,3]
[406270737,1771675848184,-500.0,0.0004487,3]
[406270738,1771675848193,-1000.0,0.0004487,3]
[406270739,1771675848203,-1000.0,0.0004487,3]
[406270740,1771675848213,-905.22771213,0.0004487,3]
[406270741,1771675848222,-1000.0,0.0004487,3]
[406270742,1771675848232,-500.0,0.00044879,120]
[406270743,1771675848242,-169.88351399,0.00044884,17]
[406270744,1771675848252,-202.44752766,0.00044885,2]
[406270745,1771675848262,-150.0,0.00044885,2]
[406270746,1771675848271,-296.63098615,0.00044885,30]
[406270747,1771675848281,-1000.0,0.0004489,14]
[406270748,1771675848291,-1000.0,0.0004489,14]
[406270749,1771675848301,-1000.0,0.000449,14]
[406270750,1771675848311,-1000.0,0.00044901,14]
[406270751,1771675848322,-1000.0,0.00044904,14]
[406270752,1771675848332,-1000.0,0.00044906,14]
[406270753,1771675848342,-1000.0,0.00044907,14]
[406270754,1771675848353,-1000.0,0.00044912,14]
[406270755,1771675848363,-842.0,0.00044932,120]
[406270756,1771675848373,-500.0,0.00044933,120]
[406270757,1771675848382,-452.51165324,0.00044933,120]
[406270758,1771675848393,-150.0,0.00044936,14]
[406270759,1771675848402,-150.0,0.00044936,14]
[406270760,1771675848412,-1000.0,0.00044939,14]
[406270761,1771675848422,-500.0,0.00044948,30]
[406270762,1771675848432,-500.0,0.00044948,30]
[406270763,1771675848442,-320.25712602,0.00044948,30]
[406270764,1771675848453,-668.65185757,0.00044948,30]
[406270765,1771675848759,-151.0,0.00044948,30]
[406270766,1771675848768,-500.0,0.00044948,30]
[406270767,1771675848779,-1000.0,0.00044949,14]
[406270768,1771675848789,-150.0,0.00044954,14]
[406270769,1771675848798,-1000.0,0.00044955,14]
[406270770,1771675848807,-150.0,0.00044956,14]
[406270771,1771675848817,-578316.63477756,0.00044958,6]
[406270772,1771675848916,-818.196,0.00044958,6]
[406270773,1771675848990,-361.325,0.0003626,2]
[406270774,1771675849005,-51.675,0.0003626,2]
[406270775,1771675849015,-413.0,0.0003926,2]
[406270776,1771675849024,-841539.66261134,0.00044958,6]
[406270777,1771675849034,-1000.0,0.00044959,30]
[406270778,1771675849043,-1000.0,0.00044959,30]
[406270779,1771675849053,-1000.0,0.00044959,30]